Cogmind - Beta 16 @@@ ROGUE MODE // 2025.12.19 @ 15:26:27 Player: Anting Result: Destroyed by D-53 Grenadier with Mini Grenade Launcher Performance ------------- Evolutions (0) 0 Regions Visited (4) 800 Robots Destroyed (43) 215 Value Destroyed (669) 669 Prototype IDs (2) 40 Alien Tech Used (0) 0 Bonus (81) 81 TOTAL SCORE: 1805 Bonus ------- Follower Combat Kills 81 Cogmind --------- Core Integrity 0/250 Matter 177/300 Energy 99/100 System Corruption 1% Temperature Cool (0) Movement Core (50) Location -9/Mines Parts ------- > --- POWER (1) -------- (None) > --- PROPULSION (2) --- (None) > --- UTILITY (2) ------ (None) > --- WEAPON (2) ------- (None) > --- INVENTORY (5) ---- Light Treads Aluminum Leg Medium Storage Unit High-capacity Matter Pod (200) Light EM Pulse Cannon Peak State ------------ > --- POWER ------------ Light Ion Engine > --- PROPULSION ------- Aluminum Leg Aluminum Leg > --- UTILITY ---------- Large Storage Unit Huge Storage Unit > --- WEAPON ----------- Light Assault Rifle Mini Grenade Launcher > --- INVENTORY -------- Light Nuclear Core Light Treads Light Treads Light Treads Light Treads Light Treads Aluminum Leg Aluminum Leg Aluminum Leg VSS Leg Improved Heat Sink Medium Storage Unit Compact Battery High-capacity Matter Pod Improved Sensor Array Advanced Targeting Computer Medium Laser Light EM Pulse Cannon Light EM Pulse Cannon Light EM Pulse Cannon Ion Cannon Assault Rifle Light Assault Rifle Mini Grenade Launcher Katana [Rating: 12] Favorites ----------- Power Light Ion Engine Engine Light Ion Engine Propulsion Aluminum Leg Treads Light Treads Leg Aluminum Leg Utility Seismic Detector Device Seismic Detector Storage Large Storage Unit Weapon Light Assault Rifle Energy Gun Small Laser Ballistic Gun Light Assault Rifle Launcher Mini Grenade Launcher Build | -11 -10 -10 -10 -9 ------- Run | Yrd Mat Min Exi Min Slots Evolved . | . . . . . Power . | . . . . . Propulsion . | . . . . . Utility . | . . . . . Weapon . | . . . . . Parts Attached 26 | 7 10 5 1 3 Power 3 | 1 2 . . . Engine 3 | 1 2 . . . Core . | . . . . . Reactor . | . . . . . Propulsion 7 | 2 1 2 . 2 Treads 2 | . . . . 2 Leg 5 | 2 1 2 . . Wheel . | . . . . . Hover . | . . . . . Flight . | . . . . . Utility 8 | 2 4 2 . . Device 4 | 1 2 1 . . Storage 4 | 1 2 1 . . Processor . | . . . . . Hackware . | . . . . . Protection . | . . . . . Artifact . | . . . . . Weapon 8 | 2 3 1 1 1 Energy Gun 1 | 1 . . . . Energy Cannon . | . . . . . Ballistic Gun 5 | 1 2 1 1 . Ballistic Cannon . | . . . . . Launcher 2 | . 1 . . 1 Special Weapon . | . . . . . Impact Weapon . | . . . . . Slashing Weapon . | . . . . . Piercing Weapon . | . . . . . Special Melee Weapon . | . . . . . Unidentified Prototypes . | . . . . . Parts Lost 6 | . 4 1 . 1 Power 3 | . 2 . . 1 Propulsion . | . . . . . Utility 3 | . 2 1 . . Weapon . | . . . . . Highest Loss Streak 1 | . 1 1 . 1 To Critical Strikes . | . . . . . Average Backups 18 | 3 12 20 25 23 Power . | . . . 1 1 Propulsion 6 | 1 4 7 8 8 Utility 4 | . 3 4 6 6 Weapon 7 | . 4 8 9 8 Tool/Special . | . . . . . Unused Backups 19 | . 2 . . 17 Power 1 | . . . . 1 Propulsion 5 | . . . . 5 Utility 7 | . 2 . . 5 Weapon 6 | . . . . 6 Tool/Special . | . . . . . Average Slot Usage (%) 95 | . 95 99 71 100 Engine 12 | . 10 14 14 14 Leg 27 | . 28 28 28 27 Device 9 | . 12 4 14 14 Storage 18 | . 14 23 14 14 Energy Gun 2 | . 5 . . . Ballistic Gun 22 | . 21 27 . 27 Peak Build Rating 12 | 7 9 12 11 12 Average Rating 9 | 5 8 10 9 11 On Entrance 7 | . 7 9 11 11 Avg Prop Armor Cover (%) . | . . . . . Naked Turns . | . . . . . Heaviest Build 106 | 11 27 106 87 87 Greatest Support 20 | 20 20 20 20 20 Greatest Overweight (x) 5 | . 1 5 4 4 Average Overweight (x) 1 | . . 3 4 3 Largest Inventory Capacity 25 | 8 15 25 25 25 Average Capacity 19 | 7 12 22 25 25 Most Carried 25 | 5 15 25 25 23 Average Carried 18 | 3 12 20 24 23 Final Capacity 25 | 8 15 25 25 5 Final Carried 25 | 5 15 25 23 5 Class Distribution -------------------- 62% | Mutant 37% | Scavenger-Mutant Dominant Class ---------------- Mutant | -10/Materials Mutant | -10/Mines Scavenger-Mutant | -10/Exiles Scavenger-Mutant | -9/Mines Resources | -11 -10 -10 -10 -9 ----------- Run | Yrd Mat Min Exi Min Matter Collected 1010 | 265 542 203 . . Remotely . | . . . . . Salvage Created 1152 | 40 859 228 . 25 Parts 94 | 4 62 28 . . Haulers Intercepted 2 | . 2 . . . Recyclers Shooed 4 | 1 3 . . . Parts Field Recycled . | . . . . . Retrieved Matter . | . . . . . Parts Self-Destructed . | . . . . . Prevented . | . . . . . Parts Restored . | . . . . . Kills | -11 -10 -10 -10 -9 ------- Run | Yrd Mat Min Exi Min Combat Hostiles Destroyed 29 | . 17 5 . 7 Guns 19 | . 17 2 . . AOE 10 | . . 3 . 7 Classes Destroyed 9 | 1 7 . . 1 Worker 3 | . 1 2 . . Tunneler 10 | 2 3 5 . . Hauler 2 | . 2 . . . Recycler 2 | . 2 . . . Operator 1 | . 1 . . . Watcher 3 | . 3 . . . Swarmer 12 | . 9 3 . . Grunt 10 | . 8 2 . . Assembled 7 | . . . . 7 Best Kill Streak 7 | 2 4 4 . 7 Combat Bots Only 7 | . 4 3 . 7 Max Kills in Single Turn 2 | 1 1 2 . 2 Gunslinging . | . . . . . Exploded 2 | . . 2 . 2 Melee . | . . . . . Uniques/NPCs Destroyed . | . . . . . Combat | -11 -10 -10 -10 -9 -------- Run | Yrd Mat Min Exi Min Hostile Shots Fired 115 | . 86 12 . 17 Missed 28 | . 17 5 . 6 Hits 87 | . 69 7 . 11 Projectile 87 | . 69 7 . 11 AOE 7 | . . . . 7 Critical Strikes 1 | . . 1 . . Damage Taken 1168 | . 678 103 . 387 Core 263 | . 160 7 . 96 Absorbed by Shields . | . . . . . Core Remaining (%) 100 | 100 . . . . Volleys Fired 146 | 15 103 22 . 6 Largest 2 | 2 2 2 . 1 Hottest 60 | 60 60 40 . 30 Shots Fired 280 | 30 203 41 . 6 Gun 269 | 30 201 38 . . Cannon . | . . . . . Launcher 11 | . 2 3 . 6 Special . | . . . . . Kinetic 187 | 15 134 38 . . Thermal 82 | 15 67 . . . Explosive 11 | . 2 3 . 6 Electromagnetic . | . . . . . Robot Hit Streak 20 | 4 20 7 . 3 Robot Miss Streak 4 | 2 4 3 . 2 Penetration Max . | . . . . . Secondary Targets 2 | . 2 . . . Max Gunslinging Chain 1 | . 1 . . . Shots Hit Robots 168 | 17 128 22 . 1 Core Hits 93 | 4 56 14 . 19 Critical Kills . | . . . . . Critical Parts Destroyed 1 | . 1 . . . Critical Strikes 1 | . 1 . . . Destroy 1 | . 1 . . . Melee Attacks . | . . . . . Impact . | . . . . . Slashing . | . . . . . Piercing . | . . . . . Sneak Attacks . | . . . . . Combat Hostiles . | . . . . . Follow-up Attacks . | . . . . . Damage Inflicted 2684 | 163 1336 453 . 732 Guns 1694 | 163 1296 235 . . Cannons . | . . . . . Explosions 965 | . 24 209 . 732 Melee . | . . . . . Ramming 25 | . 16 9 . . Kinetic 1127 | 79 813 235 . . Thermal 570 | 84 486 . . . Explosive 962 | . 21 209 . 732 Electromagnetic . | . . . . . Impact . | . . . . . Slashing . | . . . . . Piercing . | . . . . . Highest Corruption 1 | . 1 1 1 1 Average Corruption 1 | . 1 1 1 1 Corruption Purged . | . . . . . Corruption Blocked . | . . . . . Effects 49 | . 14 26 6 3 Message Errors 15 | . 5 9 . 1 Matter Fused 9 | . 2 6 1 . Heat Flow Errors 4 | . . 3 . 1 Energy Discharges 6 | . 3 1 1 1 Parts Rejected 1 | . 1 . . . Parts Fused 1 | . . 1 . . Data Loss (minor) 6 | . 1 3 2 . Data Loss (major) 5 | . 1 3 1 . Alerts 1 | . . . 1 . Weapon Failures 1 | . 1 . . . Overload Shots . | . . . . . Overflow Damage 55 | . . 24 . 31 Projectiles . | . . . . . Explosions 55 | . . 24 . 31 Melee . | . . . . . Knockbacks . | . . . . . Impact . | . . . . . Kinetic . | . . . . . Secondary . | . . . . . Self-Inflicted Damage . | . . . . . Shots . | . . . . . Rammed . | . . . . . Targets Rammed 8 | 1 3 4 . . Kicked 8 | 1 3 4 . . Crushed . | . . . . . Highest Temperature 252 | 60 102 252 . 132 Average Temperature 34 | 33 23 90 . 55 Received Heat Transfer 275 | . 201 54 . 20 Effects 1 | . . 1 . . Energy Bleed 1 | . . 1 . . Siege Activations . | . . . . . Martial Activations . | . . . . . Shielding Activations . | . . . . . Robots Disrupted . | . . . . . Combat Hostiles . | . . . . . Robots Corrupted . | . . . . . Combat Hostiles . | . . . . . Parts Fried . | . . . . . Impact Corruptions . | . . . . . Robots Melted . | . . . . . Combat Hostiles . | . . . . . Parts Melted 1 | . 1 . . . Heat Transferred 1375 | 200 1175 . . . Parts Sabotaged . | . . . . . Parts Stolen . | . . . . . Parts Stripped . | . . . . . Power Chain Reactions . | . . . . . Alert | -11 -10 -10 -10 -9 ------- Run | Yrd Mat Min Exi Min Maximum Alert Level . | . . . . . Low Security (%) 100 | 100 100 100 . 100 Level 1 . | . . . . . Level 2 . | . . . . . Level 3 . | . . . . . Level 4 . | . . . . . Level 5 . | . . . . . High Security . | . . . . . Max Security . | . . . . . Peak Influence 158 | 10 158 115 . 22 Initial 57 | . . 57 . . Average 39 | 1 68 26 . . Influence Increases 1061 | 10 696 320 . 35 Destroy 0b10 Robot/C 540 | . 340 200 . . Destroy 0b10 Robot/NC 105 | 10 60 35 . . Destroy Leader 110 | . 70 40 . . Allied During Kill 26 | . . 26 . . Successful Hack 33 | . 33 . . . Select Force Hacks 30 | . 30 . . . Disable Machine 45 | . 45 . . . Destroy Structure 97 | . 43 19 . 35 Partial Spotted 30 | . 30 . . . Lose Combat Pursuer 45 | . 45 . . . Influence Decreases 1061 | 10 547 444 25 35 Entered New Map 117 | . . 92 25 . Time Decay 824 | 10 507 302 . 5 Lost Part 60 | . 40 10 . 10 Lost Ally 60 | . . 40 . 20 Squads Dispatched 3 | . 2 1 . . Investigation 2 | . 1 1 . . Extermination . | . . . . . Reinforcement 1 | . 1 . . . Assault . | . . . . . Garrison . | . . . . . Intercept . | . . . . . Searches Triggered . | . . . . . Construction Impeded . | . . . . . Haulers Reinforced . | . . . . . Active Scanning Responses . | . . . . . Cargo Convoy Interrupts . | . . . . . Stealth | -11 -10 -10 -10 -9 --------- Run | Yrd Mat Min Exi Min Distress Signals 3 | . 3 . . . Communications Jammed . | . . . . . Distress Signals . | . . . . . Times Spotted 64 | . 34 8 . 22 Peak Tracking Total 16 | . 5 3 . 16 Tactical Retreats 2 | . 1 . . 1 Traps | -11 -10 -10 -10 -9 ------- Run | Yrd Mat Min Exi Min Traps Triggered 1 | . 1 . . . Indirectly . | . . . . . Trap Hack Attempts . | . . . . . Triggered . | . . . . . Disarmed . | . . . . . Reprogrammed . | . . . . . Reused . | . . . . . Traps Extracted . | . . . . . Installed . | . . . . . Triggered . | . . . . . Machines | -11 -10 -10 -10 -9 ---------- Run | Yrd Mat Min Exi Min Machines Disabled 3 | . 3 . . . Max in Single Turn 2 | . 2 . . . Machines Repaired . | . . . . . Machines Dismantled . | . . . . . Machines Sabotaged . | . . . . . Overloaded Fab Kills . | . . . . . Hacking | -11 -10 -10 -10 -9 --------- Run | Yrd Mat Min Exi Min Machines Accessed 11 | . 8 1 2 . Terminals 7 | . 7 . . . Fabricators . | . . . . . Repair Stations . | . . . . . Recycling Units 1 | . 1 . . . Scanalyzers . | . . . . . Garrison Access . | . . . . . Total Hacks 24 | . 21 1 2 . Successful 15 | . 12 1 2 . Failed 8 | . 8 . . . Catastrophic 1 | . 1 . . . Database Lockouts 1 | . 1 . . . Manual 18 | . 18 . . . Terminals 20 | . 20 . . . Fabricators . | . . . . . Repair Stations . | . . . . . Recycling Units 1 | . 1 . . . Scanalyzers . | . . . . . Garrison Access . | . . . . . Terminal Hacks 7 | . 4 1 2 . Record 2 | . . . 2 . Part Schematic 1 | . 1 . . . Prototype ID Bank 1 | . 1 . . . Open Door 1 | . . 1 . . Locate Traps 1 | . 1 . . . Zone Layout 1 | . 1 . . . Fabricator Hacks . | . . . . . Repair Station Hacks . | . . . . . Recycling Unit Hacks . | . . . . . Scanalyzer . | . . . . . Garrison Access Hacks . | . . . . . Unauthorized Hacks 8 | . 8 . . . Terminals 7 | . 7 . . . Botnet 1 | . 1 . . . Operators 1 | . 1 . . . Skim 5 | . 5 . . . Fabricators . | . . . . . Repair Stations . | . . . . . Recycling Units 1 | . 1 . . . Tunnel 1 | . 1 . . . Scanalyzers . | . . . . . Garrison Access . | . . . . . Data Cores Recovered . | . . . . . Used . | . . . . . Hacking Detections 6 | . 6 . . . Full Trace Events . | . . . . . Feedback Events . | . . . . . Feedback Blocked . | . . . . . Robot Schematics Acquired . | . . . . . Robots Built . | . . . . . Authchips . | . . . . . Time . | . . . . . Total Robot Build Rating . | . . . . . Part Schematics Acquired 1 | . 1 . . . Parts Built . | . . . . . Authchips . | . . . . . Time . | . . . . . Total Part Build Rating . | . . . . . Part Studies Acquired . | . . . . . Parts Repaired . | . . . . . Time . | . . . . . Parts Recycled . | . . . . . Recycled Matter . | . . . . . Retrieved Matter . | . . . . . Retrieved Components . | . . . . . Parts Scanalyzed . | . . . . . Part Schematics Acquired . | . . . . . Parts Damaged . | . . . . . Bothacking | -11 -10 -10 -10 -9 ------------ Run | Yrd Mat Min Exi Min Used RIF Installer . | . . . . . Robots Hacked . | . . . . . Non-combat . | . . . . . Combat . | . . . . . Robot Hacks Applied . | . . . . . Relay Couplers Released . | . . . . . Fabnet Peak Effective % . | . . . . . Robots Rewired . | . . . . . Allies Hacked . | . . . . . Hacks Repelled . | . . . . . Allies | -11 -10 -10 -10 -9 -------- Run | Yrd Mat Min Exi Min Total Allies 4 | . . 3 . 1 Largest Group 3 | . . 3 1 2 Highest-Rated Group 47 | . . 40 16 47 Highest-Rated Ally 31 | . . 16 16 31 Total Orders . | . . . . . Ally Attacks 35 | . . 31 . 4 Total Damage 390 | . . 345 . 45 Kills 5 | . . 5 . . Allies Corrupted . | . . . . . Allies Melted . | . . . . . Intel | -11 -10 -10 -10 -9 ------- Run | Yrd Mat Min Exi Min Active Infowar (turns) 4290 | 23 2027 887 752 601 Seismic 4290 | 23 2027 887 752 601 Robot Analysis Total . | . . . . . Derelict Logs Recovered 3 | . . 2 . 1 Drone Launches . | . . . . . Drone Recoveries . | . . . . . Exploration | -11 -10 -10 -10 -9 ------------- Run | Yrd Mat Min Exi Min Turns Passed 6545 | 110 2195 2887 752 601 Spaces Moved 2249 | 46 1086 782 188 147 Core 5 | 4 . . . 1 Treads . | . . . . . Legs 2244 | 42 1086 782 188 146 Wheels . | . . . . . Hover . | . . . . . Flight . | . . . . . Fastest Speed 50 | 50 120 190 400 50 Average Speed 256 | 113 153 346 400 397 Slowest Speed 470 | 120 190 470 400 400 Overloaded Moves . | . . . . . Propulsion Burnouts . | . . . . . Robots Hopped . | . . . . . Potential Cave-ins . | . . . . . Cave-ins Triggered . | . . . . . Exploration Rate (%) 58 | 5 94 99 60 33 Regions Visited 4 Branch Regions 3 Pre-discovered Areas 4 | . 3 1 . . Known Exits Taken 1 | . . . 1 . Unknown Exits Taken 3 | 1 1 1 . . Scrap Searched 1 | . . 1 . . Spaces Dug 39 | . . 14 . 25 Terrain Destroyed 119 | . 52 24 . 43 Melee . | . . . . . Projectile . | . . . . . AOE 119 | . 52 24 . 43 Terrain Rammed . | . . . . . Walls Destroyed . | . . . . . Machines Disabled . | . . . . . Actions | -11 -10 -10 -10 -9 --------- Run | Yrd Mat Min Exi Min Total 2763 | 73 1427 915 192 156 Wait 291 | . 203 88 . . Move 2246 | 46 1085 781 187 147 Hop . | . . . . . Pick Up 29 | 5 14 10 . . Fast Attach 13 | 7 5 1 . . Attach 4 | . 1 1 2 . Detach 1 | . . . 1 . Swap 14 | . 6 5 . 3 Drop 12 | . 7 3 2 . Fire 146 | 15 103 22 . 6 Melee . | . . . . . Ram . | . . . . . Kick 7 | . 3 4 . . Crush . | . . . . . Escape Stasis . | . . . . . Rewire . | . . . . . Trap . | . . . . . Miscellaneous . | . . . . . Route ------- -11/Scrapyard -10/Materials (discovered 6 exits: [*Mat x3] / *Min x2 / Sub) -10/Mines (discovered 3 exits: [*Mat x2] / *Exi) -10/Exiles (discovered 2 exits: *Min x2) -9/Mines History --------- Turn | Location | Event 7 | -11/Scrapyard | Discovered new exit (range 16) 111 | -11/Scrapyard | Entered Materials 183 | -10/Materials | Discovered new exit (range 13) 302 | -10/Materials | Build established: Mutant 425 | -10/Materials | Discovered new exit (range 8) 907 | -10/Materials | Discovered new exit (range 13) 1210 | -10/Materials | Discovered new exit (range 13) 1287 | -10/Materials | Discovered new exit (range 16) 1450 | -10/Materials | Learned location of Subcaves (-10) 1504 | -10/Materials | Central database locked down 1522 | -10/Materials | Learned 4 Recycling zone layouts 1540 | -10/Materials | Identified exit to Subcaves 1550 | -10/Materials | Learned 4 Recycling zone layouts 1551 | -10/Materials | Learned location of 2 exits from Subcaves 1553 | -10/Materials | Learned 2 Storage zone layouts 1774 | -10/Materials | Core integrity fell below 50% 2306 | -10/Materials | Entered Mines 2325 | -10/Mines | Discovered new exit (range 12) 2352 | -10/Mines | Assisted by bots powering up and referring to "LRC-V3" 2409 | -10/Mines | Learned location of Storage (-7) 3402 | -10/Mines | Met a Derelict shopkeep closing up shop 4380 | -10/Mines | Build established: Scavenger-Mutant 4383 | -10/Mines | Discovered new exit (range 12) 5173 | -10/Mines | Deemed a non-threat by the Exiles lab entrance 5173 | -10/Mines | Discovered new exit (range 5) 5193 | -10/Mines | Entered Exiles 5193 | -10/Exiles | Found Exiles lab abandoned 5193 | -10/Exiles | Accompanied by 1 ally 5194 | -10/Exiles | Identified exit to Mines 5945 | -10/Exiles | Entered Mines 5945 | -9/Mines | Accompanied by 1 ally 5948 | -9/Mines | Received a Mining Laser from a helpful Derelict 6425 | -9/Mines | Learned Materials stockpile data 6498 | -9/Mines | Assembled infested the area 6503 | -9/Mines | Assisted by a Guerilla fighting off Assembled 6541 | -9/Mines | Core integrity fell below 20% 6546 | -9/Mines | Released all parts (6) 6546 | -9/Mines | Destroyed by D-53 Grenadier with Mini Grenade Launcher Last Messages --------------- 06535_ D-53 Grenadier unfolds itself. 06535_ as-58498 destroyed. 06537_ Trooper 1a destroyed. 06538_ as-84660 destroyed. 06539_ The unstable cave ceiling collapses. 06540_ Lgt. Ion Engine destroyed. 06541_ as-43703 destroyed. 06542_ Destroyed Asb. Hover Unit. 06542_ as-56619 destroyed. 06543_ as-34298 destroyed. 06544_ as-59694 destroyed. 06544_ as-06490 destroyed. 06545_ as-56683 destroyed. 06546_ The unstable cave ceiling collapses. 06546_ Released Lgt. Treads. 06546_ Released Lgt. Assault Rifle. 06546_ Released Seismic Detector. 06546_ Released Huge Storage Unit. 06546_ Released Mni. Grenade Launcher. 06546_ Released Lgt. Treads. Map ----- +----------------------------------------------------+ | ?????????????????????????????????????????????????? | | ?????????????????????????????????????????????????? | | ?????????????????????????????????????????????????? | | ?????????????????????????????????????????????????? | | ?????????????????????????????????????????????????? | | ?????????????????????????????????????????????????? | | ?????????????????????????????????????????????????? | | ?????????????????????????????????????????????????? | | ?????????????????????????????????????????????????? | | ?????????????????????????????????????????????????? | | ?????????????????????? ????????????????????????? | | ???????????????????? ????????????????????????? | | ??????????????????? % ????????????????????????? | | ???????????????????? ????????????????????????? | | ???????????????????? ????????????????????????? | | ????????????????????# ????????????????????????? | | ?????????????????#### dd #???????????????????????? | | ????????????????## #???????????????????????? | | ???????????????## """ ##??????????????????????? | | ????????????#### """ ##?????????????????????? | | ????????????# """ ##????????????????????? | | ######??????# ### ##???????????????????? | | #??????# #?# ! #???????????????????? | | #### #??????# #?# ][= ##??????????????????? | | ???# #??????# #?## ]]!=[# ####???????????????? | | ???# ####???# #??# ]!==@/ % ! #???????? | | ???# #???# #??# ]*!== #????????? | | ???### #???# #??## !=! #?????????? | | ?????# #???# #???## = a #?????????? | | ?????# #???# #????### = a #?????????? | | ?????# #???# #??????## % a #????????? | | ?????# ##### #???????## s = ???????? | | ????## #????????# s =??????????? | | ???## #######????????#### #####???????????? | | ???# #?????????????????? s ##???????????????? | | ???# #??????????????????$#####????????????????? | | ???## ##???###??????????? #????????????????????? | | ????## #???# ##?????????? #????????????????????? | | ?????# #???# #?????????? ????????????????????? | | ????## #??## ##?????????? ????????????????????? | | ????# #### ###?????????????????????????????? | | ???## ## ##????????????????????????????? | | ??## | #????????????????????????????? | | ?## ### #????????????????????????????? | | ## ##?## ##????????????????????????????? | | # ##???###?????????????????????????????? | | #????????????????????????????????????? | | ## #????????????????????????????????????? | | ##### ##????????????????????????????????????? | | ##???####?????????????????????????????????????? | +----------------------------------------------------+ Best States ------------- Heat Dissipation 25 Energy Generation 10 Energy Capacity 125 Matter Stores 300 Matter Capacity 300 Sight Range 16 Terrain Scan Density 10 Evasion (%) 55 Recoil Reduction 2 Item Schematics ----------------- Hcp. Storage Unit | -10/Materials | Hacked Robot Schematics ------------------ None Fabricated ------------ Nothing Repaired ---------- Nothing Studied --------- None Alien Tech Used ----------------- None Achievements -------------- None Challenges ------------ None Game ------ Seed CoolingAssembledMegashotty Manual? 0 Play Time 00:19:38 Cumulative 402.1 hours Start 2025.12.12 @ 19:09:36 End 2025.12.19 @ 15:26:27 Sessions 2 Manual Loads 0 Difficulty Rogue Special Mode None Game No. 266 Rogue 266 Adventurer 0 Explorer 0 Win Type - Total 26 Types 10/0/8/1/1/0/3/1/1/1 Lore% 84 Gallery% 80 Achievement% 69 Wizard Run 0 Options --------- Layout 1 ASCII 0 Keyboard 0 Movement Mouse Keybinds 0 Fullscreen 2 Font 24/Smallcaps Map View 50x35 Zoom Use 0% Tactical HUD 1 Map Filters NONE Filters NONE Steam 1 RUN: 2ebbe7ba-a187-4b3d-bb2c-a74665d8e0e6